fUST/lending_fUST_20240517
["ID","MTS","AMOUNT","RATE_DAILY","PERIOD"]
[327199591,1715893853071,-500.0,0.00017534,2]
[327199592,1715893853080,-552.26,0.00017534,2]
[327199593,1715893853089,-500.0,0.00017534,2]
[327199594,1715893853099,-500.0,0.00017534,2]
[327199595,1715893853108,-725.64,0.00017534,2]
[327199596,1715893853117,-478.0263685,0.00017534,2]
[327199597,1715893853127,-500.0,0.00017534,2]
[327199598,1715893853135,-3292.07,0.00017534,2]
[327199599,1715893853145,-500.0,0.00017534,2]
[327199600,1715893853154,-500.0,0.00017534,2]
[327199601,1715893853163,-2149.14,0.00017534,2]
[327199602,1715893853172,-1674.36,0.00017534,2]
[327199603,1715893853181,-500.0,0.00017534,2]
[327199604,1715893853190,-508.85,0.00017534,2]
[327199605,1715893853200,-1326.49,0.00017534,2]
[327199606,1715893853209,-500.0,0.00017534,2]
[327199607,1715893853218,-1774.24,0.00017534,2]
[327199608,1715893853227,-500.0,0.00017534,2]
[327199609,1715893853236,-910.33,0.00017534,2]
[327199610,1715893853245,-2097.89,0.00017534,2]
[327199611,1715893853254,-772.63,0.00017534,2]
[327199612,1715893853263,-500.0,0.00017534,2]
[327199613,1715893853273,-1957.51,0.00017534,2]
[327199614,1715893853283,-612.69,0.00017534,2]
[327199615,1715893853292,-500.0,0.00017534,2]
[327199616,1715893853302,-3016.8,0.00017534,2]
[327199617,1715893853311,-500.0,0.00017534,2]
[327199618,1715893853320,-798.31,0.00017534,2]
[327199619,1715893853329,-500.0,0.00017534,2]
[327199620,1715893853338,-500.0,0.00017534,2]
[327199621,1715893853348,-1056.67,0.00017534,2]
[327199622,1715893853357,-500.0,0.00017534,2]
[327199623,1715893853366,-4331.77,0.00017534,2]
[327199624,1715893853376,-500.0,0.00017534,2]
[327199625,1715893853385,-562.22,0.00017534,2]
[327199626,1715893853394,-500.0,0.00017534,2]
[327199627,1715893853403,-500.0,0.00017534,2]
[327199628,1715893853413,-6805.39,0.00017534,2]
[327199629,1715893853422,-48156.74,0.00017534,2]
[327199630,1715893853431,-500.0,0.00017534,2]
[327199631,1715893853440,-2532.53,0.00017534,2]
[327199632,1715893853450,-5194.73,0.00017534,2]
[327199633,1715893853459,-619.94,0.00017534,2]
[327199634,1715893853468,-500.0,0.00017534,2]
[327199635,1715893853477,-500.0,0.00017534,2]
[327199636,1715893853486,-500.0,0.00017534,2]
[327199637,1715893853496,-500.0,0.00017534,2]
[327199638,1715893853505,-500.0,0.00017534,2]
[327199639,1715893853515,-832.53,0.00017534,2]
[327199640,1715893853525,-1967.03,0.00017534,2]
[327199641,1715893853535,-500.0,0.00017534,2]
[327199642,1715893853545,-1852.23,0.00017534,2]
[327199643,1715893853554,-11951.4,0.00017534,2]
[327199644,1715893853564,-1325.37,0.00017534,2]
[327199645,1715893853574,-4424.41,0.00017534,2]
[327199646,1715893853583,-500.0,0.00017534,2]
[327199647,1715893853593,-696.0,0.00017534,2]
[327199648,1715893853602,-3299.35,0.00017534,2]
[327199649,1715893853611,-2345.26,0.00017534,2]
[327199650,1715893853621,-5713.66,0.00017534,2]
[327199651,1715893853630,-567.85,0.00017534,2]
[327199652,1715893853641,-500.0,0.00017534,2]
[327199653,1715893853651,-11240.46,0.00017534,2]
[327199654,1715893853660,-500.0,0.00017534,2]
[327199655,1715893853670,-2075.36,0.00017534,2]
[327199656,1715893853679,-500.0,0.00017534,2]
[327199657,1715893853689,-727.68,0.00017534,2]
[327199658,1715893853698,-1334.2,0.00017534,2]
[327199659,1715893853707,-1876.86,0.00017534,2]
[327199660,1715893853716,-1323.12,0.00017534,2]
[327199661,1715893853726,-2130.38,0.00017534,2]
[327199662,1715893853737,-500.0,0.00017534,2]
[327199663,1715893853746,-500.0,0.00017534,2]
[327199664,1715893853755,-849.1,0.00017534,2]
[327199665,1715893853882,-767.31,0.00017534,2]
[327199666,1715893853892,-791.95,0.00017534,2]
[327199667,1715893853903,-623.66,0.00017534,2]
[327199668,1715893853912,-2878.76,0.00017534,2]
[327199669,1715893853921,-500.0,0.00017534,2]
[327199670,1715893853930,-1916.2,0.00017534,2]
[327199671,1715893853942,-475.5,0.00017534,2]
[327199672,1715893853951,-1356.78,0.00017534,2]
[327199673,1715893853960,-1093.69,0.00017534,2]
[327199674,1715893853969,-4019.74,0.00017534,2]
[327199675,1715893853979,-500.0,0.00017534,2]
[327199676,1715893853988,-500.0,0.00017534,2]
[327199677,1715893853997,-500.0,0.00017808,2]
[327199678,1715893854006,-500.0,0.00017808,2]
[327199679,1715893854015,-500.0,0.00017808,2]
[327199680,1715893854025,-500.0,0.00017808,2]
[327199681,1715893854034,-500.0,0.00017808,2]
[327199682,1715893854042,-500.0,0.00017808,2]
[327199683,1715893854052,-775.76,0.00017808,2]
[327199684,1715893854061,-500.0,0.00017808,2]
[327199685,1715893854070,-500.0,0.00017808,2]
[327199686,1715893854079,-500.0,0.00017808,2]
[327199687,1715893854088,-500.0,0.00017808,2]
[327199688,1715893854097,-500.0,0.00017808,2]
[327199689,1715893854107,-500.0,0.00017808,2]
[327199690,1715893854116,-500.0,0.00017808,2]
[327199691,1715893854125,-500.0,0.00017808,2]
[327199692,1715893854134,-541.91,0.00017808,2]
[327199693,1715893854144,-571.96,0.00017808,2]
[327199694,1715893854154,-500.0,0.00017808,2]
[327199695,1715893854164,-1062.97,0.00017808,2]
[327199696,1715893854174,-793.27,0.00017808,2]
[327199697,1715893854183,-500.0,0.00017808,2]
[327199698,1715893854192,-606.48,0.00017808,2]
[327199699,1715893854202,-551.97,0.00017808,2]
[327199700,1715893854211,-1159.47,0.00017808,2]
[327199701,1715893854221,-500.0,0.00017808,2]
[327199702,1715893854230,-500.0,0.00017808,2]
[327199703,1715893854239,-814.06,0.00017808,2]
[327199704,1715893854249,-957.24,0.00017808,2]
[327199705,1715893854259,-665.34,0.00017808,2]
[327199706,1715893854268,-500.0,0.00017808,2]
[327199707,1715893854278,-500.0,0.00017808,2]
[327199708,1715893854287,-1243.34,0.00017808,2]
[327199709,1715893854297,-500.0,0.00017808,2]
[327199710,1715893854307,-1381.92,0.00017808,2]
[327199711,1715893854316,-500.0,0.00017808,2]
[327199712,1715893854326,-500.0,0.00017808,2]
[327199713,1715893854336,-1307.96,0.00017808,2]
[327199714,1715893854345,-500.0,0.00017808,2]
[327199715,1715893854354,-500.0,0.00017808,2]
[327199716,1715893854364,-745.61,0.00017808,2]
[327199717,1715893854373,-500.0,0.00017808,2]
[327199718,1715893854383,-925.69,0.00017808,2]
[327199719,1715893854392,-500.0,0.00017808,2]
[327199720,1715893854402,-1805.2,0.00017808,2]
[327199721,1715893854411,-623.21,0.00017808,2]
[327199722,1715893854420,-1557.57,0.00017808,2]
[327199723,1715893854430,-842.56,0.00017808,2]
[327199724,1715893854439,-500.0,0.00017808,2]
[327199725,1715893854448,-500.0,0.00017808,2]
[327199726,1715893854458,-500.0,0.00017808,2]
[327199727,1715893854467,-500.0,0.00017808,2]
[327199728,1715893854477,-500.0,0.00017808,2]
[327199729,1715893854486,-3080.69,0.00017808,2]
[327199730,1715893854495,-1436.84,0.00017808,2]
[327199731,1715893854504,-624.55,0.00017808,2]
[327199732,1715893854514,-2315.76,0.00017808,2]
[327199733,1715893854524,-1693.51,0.00017808,2]
[327199734,1715893854533,-1089.16,0.00017808,2]
[327199735,1715893854543,-500.0,0.00017808,2]
[327199736,1715893854552,-808.15,0.00017808,2]
[327199737,1715893854561,-767.13,0.00017808,2]
[327199738,1715893854570,-500.0,0.00017808,2]
[327199739,1715893854580,-684.24,0.00017808,2]
[327199740,1715893854589,-500.0,0.00017808,2]
[327199741,1715893854598,-500.0,0.00017808,2]
[327199742,1715893854608,-2645.94,0.00017808,2]
[327199743,1715893854617,-2044.8,0.00017808,2]
[327199744,1715893854626,-500.0,0.00017808,2]
[327199745,1715893854636,-2921.84,0.00017808,2]
[327199746,1715893854645,-500.0,0.00017808,2]
[327199747,1715893854655,-506.82,0.00017808,2]
[327199748,1715893854664,-1343.18,0.00017808,2]
[327199749,1715893854673,-572.69,0.00017808,2]
[327199750,1715893854683,-500.0,0.00017808,2]
[327199751,1715893854692,-500.0,0.00017808,2]
[327199752,1715893854701,-500.0,0.00017808,2]
[327199753,1715893854711,-501.91,0.00017808,2]
[327199754,1715893854719,-500.0,0.00017808,2]
[327199755,1715893854729,-500.0,0.00017808,2]
[327199756,1715893854738,-500.0,0.00017808,2]
[327199757,1715893854747,-500.0,0.00017808,2]
[327199758,1715893854757,-1520.41,0.00017808,2]
[327199759,1715893854766,-500.0,0.00017808,2]
[327199760,1715893854775,-552.26,0.00017808,2]
[327199761,1715893854784,-500.0,0.00017808,2]
[327199762,1715893854793,-500.0,0.00017808,2]
[327199763,1715893854804,-725.64,0.00017808,2]
[327199764,1715893854813,-500.0,0.00017808,2]
[327199765,1715893854823,-3292.07,0.00017808,2]
[327199766,1715893854833,-500.0,0.00017808,2]
[327199767,1715893854843,-318.27863262,0.00017808,2]
[327199768,1715893854852,-2149.14,0.00017808,2]
[327199769,1715893854867,-1674.36,0.00017808,2]
[327199770,1715893854876,-500.0,0.00017808,2]
[327199771,1715893854885,-508.85,0.00017808,2]
[327199772,1715893854894,-1326.49,0.00017808,2]
[327199773,1715893854905,-500.0,0.00017808,2]
[327199774,1715893854914,-1774.24,0.00017808,2]
[327199775,1715893854924,-500.0,0.00017808,2]
[327199776,1715893854935,-910.33,0.00017808,2]
[327199777,1715893854945,-2097.89,0.00017808,2]
[327199778,1715893854955,-772.63,0.00017808,2]
[327199779,1715893854964,-500.0,0.00017808,2]
[327199780,1715893854974,-1957.51,0.00017808,2]
[327199781,1715893854983,-612.69,0.00017808,2]
[327199782,1715893854993,-500.0,0.00017808,2]
[327199783,1715893855002,-3016.8,0.00017808,2]
[327199784,1715893855011,-500.0,0.00017808,2]
[327199785,1715893855020,-798.31,0.00017808,2]
[327199786,1715893855031,-500.0,0.00017808,2]
[327199787,1715893855040,-500.0,0.00017808,2]
[327199788,1715893855049,-1056.67,0.00017808,2]
[327199789,1715893855058,-500.0,0.00017808,2]
[327199790,1715893855068,-4331.77,0.00017808,2]
[327199791,1715893855077,-500.0,0.00017808,2]
[327199792,1715893855087,-562.22,0.00017808,2]
[327199793,1715893855096,-500.0,0.00017808,2]
[327199794,1715893855106,-500.0,0.00017808,2]
[327199795,1715893855115,-6805.39,0.00017808,2]
[327199796,1715893855124,-48156.74,0.00017808,2]
[327199797,1715893855133,-500.0,0.00017808,2]
[327199798,1715893855142,-2532.53,0.00017808,2]
[327199799,1715893855152,-619.94,0.00017808,2]
[327199800,1715893855161,-5194.73,0.00017808,2]
[327199801,1715893855170,-500.0,0.00017808,2]
[327199802,1715893855179,-500.0,0.00017808,2]
[327199803,1715893855189,-500.0,0.00017808,2]
[327199804,1715893855198,-500.0,0.00017808,2]
[327199805,1715893855208,-500.0,0.00017808,2]
[327199806,1715893855217,-832.53,0.00017808,2]
[327199807,1715893855226,-1967.03,0.00017808,2]
[327199808,1715893855235,-500.0,0.00017808,2]
[327199809,1715893855244,-1852.23,0.00017808,2]
[327199810,1715893855253,-11951.4,0.00017808,2]
[327199811,1715893855262,-1325.37,0.00017808,2]
[327199812,1715893855271,-4424.41,0.00017808,2]
[327199813,1715893855280,-500.0,0.00017808,2]
[327199814,1715893855289,-696.0,0.00017808,2]
[327199815,1715893855298,-3299.35,0.00017808,2]
[327199816,1715893855308,-2345.26,0.00017808,2]
[327199817,1715893855317,-5713.66,0.00017808,2]
[327199818,1715893855327,-567.85,0.00017808,2]
[327199819,1715893855336,-500.0,0.00017808,2]
[327199820,1715893855345,-11240.46,0.00017808,2]
[327199821,1715893855354,-500.0,0.00017808,2]
[327199822,1715893855363,-2075.36,0.00017808,2]
[327199823,1715893855372,-500.0,0.00017808,2]
[327199824,1715893855381,-727.68,0.00017808,2]
[327199825,1715893855390,-1334.2,0.00017808,2]
[327199826,1715893855399,-1876.86,0.00017808,2]
[327199827,1715893855408,-1323.12,0.00017808,2]
[327199828,1715893855418,-2130.38,0.00017808,2]
[327199829,1715893855428,-500.0,0.00017808,2]
[327199830,1715893855437,-500.0,0.00017808,2]
[327199831,1715893855446,-849.1,0.00017808,2]
[327199832,1715893855455,-767.31,0.00017808,2]
[327199833,1715893855464,-791.95,0.00017808,2]
[327199834,1715893855473,-623.66,0.00017808,2]
[327199835,1715893855482,-2878.76,0.00017808,2]
[327199836,1715893855491,-500.0,0.00017808,2]
[327199837,1715893855501,-1916.2,0.00017808,2]
[327199838,1715893855511,-1356.78,0.00017808,2]
[327199839,1715893855520,-1093.69,0.00017808,2]
[327199840,1715893855530,-4019.74,0.00017808,2]
[327199841,1715893855539,-500.0,0.00017808,2]
[327199842,1715893855548,-500.0,0.00017808,2]
[327199843,1715893855558,-20000.0,0.00017891,2]
[327199844,1715893855567,-10447.44747128,0.00017898,2]
[327199845,1715893855576,-157.68007744,0.00018,2]
[327199846,1715893855587,-895.63460499,0.00018,2]
[327199847,1715893855596,-154.82968734,0.00018,2]
[327199848,1715893855605,-189.74256337,0.00018,2]
[327199849,1715893855614,-1663.11613396,0.00018,2]
[327199850,1715893855624,-8353.42225278,0.00018,7]
[327199851,1715893855634,-4591.6,0.00018,2]
[327199852,1715893855644,-206.55656569,0.00018012,2]
[327199853,1715893855653,-301.72572743,0.00018012,2]
[327199854,1715893855662,-309.62844586,0.00018012,2]
[327199855,1715893855672,-500.0,0.00018082,2]
[327199856,1715893855683,-500.0,0.00018082,2]
[327199857,1715893855693,-500.0,0.00018082,2]
[327199858,1715893855703,-500.0,0.00018082,2]
[327199859,1715893855715,-500.0,0.00018082,2]
[327199860,1715893855725,-500.0,0.00018082,2]
[327199861,1715893855734,-775.76,0.00018082,2]
[327199862,1715893855743,-500.0,0.00018082,2]
[327199863,1715893855753,-500.0,0.00018082,2]
[327199864,1715893855764,-500.0,0.00018082,2]
[327199865,1715893855774,-500.0,0.00018082,2]
[327199866,1715893855784,-500.0,0.00018082,2]
[327199867,1715893855793,-500.0,0.00018082,2]
[327199868,1715893855803,-500.0,0.00018082,2]
[327199869,1715893855812,-500.0,0.00018082,2]
[327199870,1715893855822,-541.91,0.00018082,2]
[327199871,1715893855834,-571.96,0.00018082,2]
[327199872,1715893855843,-500.0,0.00018082,2]
[327199873,1715893855852,-1062.97,0.00018082,2]
[327199874,1715893855865,-793.27,0.00018082,2]
[327199875,1715893855876,-500.0,0.00018082,2]
[327199876,1715893855884,-606.48,0.00018082,2]
[327199877,1715893855894,-551.97,0.00018082,2]
[327199878,1715893855904,-1159.47,0.00018082,2]
[327199879,1715893855913,-500.0,0.00018082,2]
[327199880,1715893855923,-500.0,0.00018082,2]
[327199881,1715893855931,-814.06,0.00018082,2]
[327199882,1715893855943,-957.24,0.00018082,2]
[327199883,1715893855952,-665.34,0.00018082,2]
[327199884,1715893855961,-500.0,0.00018082,2]
[327199885,1715893855970,-500.0,0.00018082,2]
[327199886,1715893855979,-1243.34,0.00018082,2]
[327199887,1715893855988,-645.36044769,0.00018082,2]
[327199888,1715893855997,-1381.92,0.00018082,2]
[327199889,1715893856006,-500.0,0.00018082,2]
[327199890,1715893856015,-500.0,0.00018082,2]
[327199891,1715893856024,-1307.96,0.00018082,2]
[327199892,1715893856034,-500.0,0.00018082,2]
[327199893,1715893856043,-500.0,0.00018082,2]
[327199894,1715893856052,-745.61,0.00018082,2]
[327199895,1715893856061,-500.0,0.00018082,2]
[327199896,1715893856071,-925.69,0.00018082,2]
[327199897,1715893856083,-500.0,0.00018082,2]
[327199898,1715893856092,-1805.2,0.00018082,2]
[327199899,1715893856102,-623.21,0.00018082,2]
[327199900,1715893856111,-1557.57,0.00018082,2]
[327199901,1715893856120,-842.56,0.00018082,2]
[327199902,1715893856129,-500.0,0.00018082,2]
[327199903,1715893856140,-500.0,0.00018082,2]
[327199904,1715893856150,-497.83971187,0.00018082,2]
[327199905,1715893856160,-500.0,0.00018082,2]
[327199906,1715893856169,-630.9438803,0.00018082,2]
[327199907,1715893856179,-3080.69,0.00018082,2]
[327199908,1715893856188,-1436.84,0.00018082,2]
[327199909,1715893856198,-624.55,0.00018082,2]
[327199910,1715893856208,-2315.76,0.00018082,2]
[327199911,1715893856217,-1693.51,0.00018082,2]
[327199912,1715893856226,-1089.16,0.00018082,2]
[327199913,1715893856235,-500.0,0.00018082,2]
[327199914,1715893856246,-808.15,0.00018082,2]
[327199915,1715893856256,-767.13,0.00018082,2]
[327199916,1715893856265,-500.0,0.00018082,2]
[327199917,1715893856275,-684.24,0.00018082,2]
[327199918,1715893856284,-500.0,0.00018082,2]
[327199919,1715893856293,-500.0,0.00018082,2]
[327199920,1715893856302,-2645.94,0.00018082,2]
[327199921,1715893856311,-2044.8,0.00018082,2]
[327199922,1715893856320,-500.0,0.00018082,2]
[327199923,1715893856331,-2921.84,0.00018082,2]
[327199924,1715893856340,-223.79946045,0.00018082,2]
[327199925,1715893856349,-506.82,0.00018082,2]
[327199926,1715893856359,-1343.18,0.00018082,2]
[327199927,1715893856367,-572.69,0.00018082,2]
[327199928,1715893856377,-500.0,0.00018082,2]
[327199929,1715893856386,-500.0,0.00018082,2]
[327199930,1715893856396,-500.0,0.00018082,2]
[327199931,1715893856405,-501.91,0.00018082,2]
[327199932,1715893856415,-500.0,0.00018082,2]
[327199933,1715893856424,-500.0,0.00018082,2]
[327199934,1715893856435,-500.0,0.00018082,2]
[327199935,1715893856444,-500.0,0.00018082,2]
[327199936,1715893856453,-1520.41,0.00018082,2]
[327199937,1715893856462,-500.0,0.00018082,2]
[327199938,1715893856471,-552.26,0.00018082,2]
[327199939,1715893856482,-500.0,0.00018082,2]
[327199940,1715893856491,-500.0,0.00018082,2]
[327199941,1715893856502,-725.64,0.00018082,2]
[327199942,1715893856511,-500.0,0.00018082,2]
[327199943,1715893856521,-3292.07,0.00018082,2]
[327199944,1715893856530,-500.0,0.00018082,2]
[327199945,1715893856539,-2149.14,0.00018082,2]
[327199946,1715893856548,-1674.36,0.00018082,2]
[327199947,1715893856557,-500.0,0.00018082,2]
[327199948,1715893856566,-508.85,0.00018082,2]
[327199949,1715893856575,-1326.49,0.00018082,2]
[327199950,1715893856586,-500.0,0.00018082,2]
[327199951,1715893856595,-1774.24,0.00018082,2]
[327199952,1715893856605,-500.0,0.00018082,2]
[327199953,1715893856614,-910.33,0.00018082,2]
[327199954,1715893856623,-2097.89,0.00018082,2]
[327199955,1715893856632,-772.63,0.00018082,2]
[327199956,1715893856753,-500.0,0.00018082,2]
[327199957,1715893856762,-1957.51,0.00018082,2]
[327199958,1715893856771,-612.69,0.00018082,2]
[327199959,1715893856780,-500.0,0.00018082,2]
[327199960,1715893856789,-3016.8,0.00018082,2]
[327199961,1715893856798,-500.0,0.00018082,2]
[327199962,1715893856806,-798.31,0.00018082,2]
[327199963,1715893856815,-500.0,0.00018082,2]
[327199964,1715893856824,-500.0,0.00018082,2]
[327199965,1715893856833,-1056.67,0.00018082,2]
[327199966,1715893856843,-500.0,0.00018082,2]
[327199967,1715893856851,-4331.77,0.00018082,2]
[327199968,1715893856864,-500.0,0.00018082,2]
[327199969,1715893856873,-562.22,0.00018082,2]
[327199970,1715893856883,-500.0,0.00018082,2]
[327199971,1715893856892,-6805.39,0.00018082,2]
[327199972,1715893856902,-48156.74,0.00018082,2]
[327199973,1715893856911,-500.0,0.00018082,2]
[327199974,1715893856920,-2532.53,0.00018082,2]
[327199975,1715893856929,-619.94,0.00018082,2]
[327199976,1715893856939,-5194.73,0.00018082,2]
[327199977,1715893856948,-500.0,0.00018082,2]
[327199978,1715893856957,-500.0,0.00018082,2]
[327199979,1715893856965,-500.0,0.00018082,2]
[327199980,1715893856975,-500.0,0.00018082,2]
[327199981,1715893856984,-500.0,0.00018082,2]
[327199982,1715893856993,-832.53,0.00018082,2]
[327199983,1715893857003,-1967.03,0.00018082,2]
[327199984,1715893857011,-500.0,0.00018082,2]
[327199985,1715893857020,-1852.23,0.00018082,2]
[327199986,1715893857029,-11951.4,0.00018082,2]
[327199987,1715893857039,-1325.37,0.00018082,2]
[327199988,1715893857049,-4424.41,0.00018082,2]
[327199989,1715893857057,-500.0,0.00018082,2]
[327199990,1715893857067,-696.0,0.00018082,2]
[327199991,1715893857075,-3299.35,0.00018082,2]
[327199992,1715893857086,-2345.26,0.00018082,2]
[327199993,1715893857095,-5713.66,0.00018082,2]
[327199994,1715893857104,-567.85,0.00018082,2]
[327199995,1715893857113,-500.0,0.00018082,2]
[327199996,1715893857123,-11240.46,0.00018082,2]
[327199997,1715893857131,-500.0,0.00018082,2]
[327199998,1715893857140,-2075.36,0.00018082,2]
[327199999,1715893857150,-342.58545802,0.00018082,2]
[327200000,1715893857159,-727.68,0.00018082,2]
[327200001,1715893857168,-1334.2,0.00018082,2]
[327200002,1715893857177,-1876.86,0.00018082,2]
[327200003,1715893857187,-1323.12,0.00018082,2]
[327200004,1715893857196,-2130.38,0.00018082,2]
[327200005,1715893857205,-500.0,0.00018082,2]
[327200006,1715893857214,-500.0,0.00018082,2]
[327200007,1715893857224,-849.1,0.00018082,2]
[327200008,1715893857233,-767.31,0.00018082,2]
[327200009,1715893857242,-791.95,0.00018082,2]
[327200010,1715893857251,-623.66,0.00018082,2]
[327200011,1715893857260,-2878.76,0.00018082,2]
[327200012,1715893857270,-500.0,0.00018082,2]
[327200013,1715893857279,-1916.2,0.00018082,2]
[327200014,1715893857288,-1356.78,0.00018082,2]
[327200015,1715893857297,-1093.69,0.00018082,2]
[327200016,1715893857306,-4019.74,0.00018082,2]
[327200017,1715893857315,-500.0,0.00018082,2]
[327200018,1715893857324,-500.0,0.00018082,2]
[327200019,1715893857335,-500.0,0.00018356,2]
[327200020,1715893857344,-500.0,0.00018356,2]
[327200021,1715893857352,-500.0,0.00018356,2]
[327200022,1715893857361,-500.0,0.00018356,2]
[327200023,1715893857370,-500.0,0.00018356,2]
[327200024,1715893857380,-500.0,0.00018356,2]
[327200025,1715893857392,-775.76,0.00018356,2]
[327200026,1715893857401,-500.0,0.00018356,2]
[327200027,1715893857411,-500.0,0.00018356,2]
[327200028,1715893857420,-500.0,0.00018356,2]
[327200029,1715893857429,-500.0,0.00018356,2]
[327200030,1715893857438,-500.0,0.00018356,2]
[327200031,1715893857447,-500.0,0.00018356,2]
[327200032,1715893857456,-500.0,0.00018356,2]
[327200033,1715893857466,-500.0,0.00018356,2]
[327200034,1715893857475,-541.91,0.00018356,2]
[327200035,1715893857484,-571.96,0.00018356,2]
[327200036,1715893857494,-500.0,0.00018356,2]
[327200037,1715893857503,-1062.97,0.00018356,2]
[327200038,1715893857512,-793.27,0.00018356,2]
[327200039,1715893857522,-500.0,0.00018356,2]
[327200040,1715893857531,-606.48,0.00018356,2]
[327200041,1715893857540,-551.97,0.00018356,2]
[327200042,1715893857549,-1159.47,0.00018356,2]
[327200043,1715893857559,-500.0,0.00018356,2]
[327200044,1715893857568,-500.0,0.00018356,2]
[327200045,1715893857576,-814.06,0.00018356,2]
[327200046,1715893857586,-957.24,0.00018356,2]
[327200047,1715893857595,-665.34,0.00018356,2]
[327200048,1715893857604,-500.0,0.00018356,2]
[327200049,1715893857613,-500.0,0.00018356,2]
[327200050,1715893857622,-1243.34,0.00018356,2]
[327200051,1715893857631,-1381.92,0.00018356,2]
[327200052,1715893857640,-151.487814,0.00018356,2]
[327200053,1715893857649,-500.0,0.00018356,2]
[327200054,1715893857659,-500.0,0.00018356,2]
[327200055,1715893857668,-887.511394,0.00018356,2]
[327200056,1715893857677,-1307.96,0.00018356,2]
[327200057,1715893857686,-500.0,0.00018356,2]
[327200058,1715893857695,-500.0,0.00018356,2]
[327200059,1715893857704,-887.511394,0.00018356,2]
[327200060,1715893857713,-745.61,0.00018356,2]
[327200061,1715893857722,-500.0,0.00018356,2]
[327200062,1715893857731,-925.69,0.00018356,2]
[327200063,1715893857741,-500.0,0.00018356,2]
[327200064,1715893857750,-1805.2,0.00018356,2]
[327200065,1715893857761,-623.21,0.00018356,2]
[327200066,1715893857771,-1557.57,0.00018356,2]
[327200067,1715893857781,-842.56,0.00018356,2]
[327200068,1715893857790,-238.73770858,0.00018356,2]
[327200069,1715893857801,-500.0,0.00018356,2]
[327200070,1715893857818,-500.0,0.00018356,2]
[327200071,1715893857827,-151.0,0.00018356,2]
[327200072,1715893857838,-151.0,0.00018356,2]
[327200073,1715893857847,-3080.69,0.00018356,2]
[327200074,1715893857858,-1436.84,0.00018356,2]
[327200075,1715893857872,-624.55,0.00018356,2]
[327200076,1715893857882,-2315.76,0.00018356,2]
[327200077,1715893857891,-1693.51,0.00018356,2]
[327200078,1715893857901,-1089.16,0.00018356,2]
[327200079,1715893857911,-500.0,0.00018356,2]
[327200080,1715893857920,-808.15,0.00018356,2]
[327200081,1715893857929,-767.13,0.00018356,2]
[327200082,1715893857939,-500.0,0.00018356,2]
[327200083,1715893857948,-684.24,0.00018356,2]
[327200084,1715893857957,-500.0,0.00018356,2]
[327200085,1715893857966,-500.0,0.00018356,2]
[327200086,1715893857975,-2645.94,0.00018356,2]
[327200087,1715893857984,-2044.8,0.00018356,2]
[327200088,1715893857994,-500.0,0.00018356,2]
[327200089,1715893858003,-151.0,0.00018356,2]
[327200090,1715893858011,-2921.84,0.00018356,2]